fUST/lending_fUST_20240624
["ID","MTS","AMOUNT","RATE_DAILY","PERIOD"]
[330248639,1719208142811,-3863.02,0.00016438,2]
[330248640,1719208142836,-500.0,0.00016438,2]
[330248641,1719208142863,-500.0,0.00016438,2]
[330248642,1719208142890,-500.0,0.00016438,2]
[330248643,1719208142915,-500.0,0.00016438,2]
[330248644,1719208142940,-500.0,0.00016438,2]
[330248645,1719208142966,-500.0,0.00016438,2]
[330248646,1719208142999,-1648.68,0.00016438,2]
[330248647,1719208143025,-3939.98,0.00016438,2]
[330248648,1719208143051,-620.25,0.00016438,2]
[330248649,1719208143076,-1155.77,0.00016438,2]
[330248650,1719208143102,-500.0,0.00016438,2]
[330248651,1719208143129,-8816.13,0.00016438,2]
[330248652,1719208143157,-2595.35,0.00016438,2]
[330248653,1719208143182,-12985.16,0.00016438,2]
[330248654,1719208143207,-500.0,0.00016438,2]
[330248655,1719208143232,-853.57,0.00016438,2]
[330248656,1719208143264,-500.0,0.00016438,2]
[330248657,1719208143290,-553.58,0.00016438,2]
[330248658,1719208143318,-313.2,0.00016438,2]
[330248659,1719208143343,-2437.46,0.00016438,2]
[330248660,1719208143368,-500.0,0.00016438,2]
[330248661,1719208143393,-500.0,0.00016438,2]
[330248662,1719208143418,-1622.12,0.00016438,2]
[330248663,1719208143442,-500.0,0.00016438,2]
[330248664,1719208143469,-21796.13,0.00016438,2]
[330248665,1719208143500,-500.0,0.00016438,2]
[330248666,1719208143526,-500.0,0.00016438,2]
[330248667,1719208143555,-1789.5,0.00016438,2]
[330248668,1719208143584,-640.75,0.00016438,2]
[330248669,1719208143612,-500.0,0.00016438,2]
[330248670,1719208143640,-4627.44,0.00016438,2]
[330248671,1719208143667,-500.0,0.00016438,2]
[330248672,1719208143842,-1287.43,0.00016438,2]
[330248673,1719208143871,-3352.34,0.00016438,2]
[330248674,1719208143898,-3397.03,0.00016438,2]
[330248675,1719208143923,-500.0,0.00016438,2]
[330248676,1719208143948,-532.7973969,0.00016438,2]
[330248677,1719208143975,-766.53,0.00016438,2]
[330248678,1719208144005,-500.0,0.00016438,2]
[330248679,1719208144032,-500.0,0.00016438,2]
[330248680,1719208144056,-500.0,0.00016438,2]
[330248681,1719208144081,-708.47,0.00016438,2]
[330248682,1719208144105,-500.0,0.00016438,2]
[330248683,1719208144130,-500.0,0.00016438,2]
[330248684,1719208144156,-4168.63,0.00016438,2]
[330248685,1719208144182,-500.0,0.00016438,2]
[330248686,1719208144206,-2227.09,0.00016438,2]
[330248687,1719208144230,-529.56,0.00016438,2]
[330248688,1719208144260,-880.3,0.00016438,2]
[330248689,1719208144285,-701.48,0.00016438,2]
[330248690,1719208144310,-500.0,0.00016438,2]
[330248691,1719208144334,-500.0,0.00016438,2]
[330248692,1719208144360,-605.96,0.00016438,2]
[330248693,1719208144386,-564.65,0.00016438,2]
[330248694,1719208144411,-567.84,0.00016438,2]
[330248695,1719208144436,-619.61,0.00016438,2]
[330248696,1719208144460,-766.17,0.00016438,2]
[330248697,1719208144485,-500.0,0.00016438,2]
[330248698,1719208144517,-1347.37,0.00016438,2]
[330248699,1719208144544,-154.77557542,0.00016623,2]
[330248700,1719208144571,-876.0,0.00016624,2]
[330248701,1719208144596,-153.0,0.000167,2]
[330248702,1719208144621,-153.0,0.000167,2]
[330248703,1719208144646,-990.65106447,0.00016709,2]
[330248704,1719208144673,-12815.08,0.0001671,2]
[330248705,1719208144697,-500.0,0.0001671,2]
[330248706,1719208144721,-500.0,0.00016711,2]
[330248707,1719208144748,-602.7,0.00016711,2]
[330248708,1719208144777,-579.11053631,0.00016711,2]
[330248709,1719208144802,-500.0,0.00016711,2]
[330248710,1719208144830,-500.0,0.00016711,2]
[330248711,1719208144858,-524.3,0.00016711,2]
[330248712,1719208144886,-297.77170308,0.00016711,2]
[330248713,1719208144912,-500.0,0.00016711,2]
[330248714,1719208144937,-804.83,0.00016711,2]
[330248715,1719208144963,-500.0,0.00016711,2]
[330248716,1719208144989,-500.0,0.00016711,2]
[330248717,1719208145028,-500.0,0.00016711,2]
[330248718,1719208145052,-500.0,0.00016711,2]
[330248719,1719208145078,-525.09,0.00016711,2]
[330248720,1719208145103,-664.42,0.00016711,2]
[330248721,1719208145128,-648.32,0.00016711,2]
[330248722,1719208145152,-500.0,0.00016711,2]
[330248723,1719208145177,-500.0,0.00016711,2]
[330248724,1719208145201,-500.0,0.00016711,2]
[330248725,1719208145226,-541.45,0.00016711,2]
[330248726,1719208145256,-500.0,0.00016711,2]
[330248727,1719208145280,-500.0,0.00016711,2]
[330248728,1719208145305,-500.0,0.00016711,2]
[330248729,1719208145331,-500.0,0.00016711,2]
[330248730,1719208145355,-500.0,0.00016711,2]
[330248731,1719208145380,-500.0,0.00016711,2]
[330248732,1719208145404,-500.0,0.00016711,2]
[330248733,1719208145428,-500.0,0.00016711,2]
[330248734,1719208145453,-500.0,0.00016711,2]
[330248735,1719208145477,-500.0,0.00016711,2]
[330248736,1719208145509,-804.26,0.00016711,2]
[330248737,1719208145532,-500.0,0.00016711,2]
[330248738,1719208145560,-1042.53,0.00016711,2]
[330248739,1719208145584,-500.0,0.00016712,2]
[330248740,1719208145610,-500.0,0.00016712,2]
[330248741,1719208145636,-500.0,0.00016712,2]
[330248742,1719208145661,-823.6,0.00016712,2]
[330248743,1719208145686,-500.0,0.00016712,2]
[330248744,1719208145710,-500.0,0.00016712,2]
[330248745,1719208145737,-500.0,0.00016712,2]
[330248746,1719208145770,-500.0,0.00016712,2]
[330248747,1719208145795,-500.0,0.00016712,2]
[330248748,1719208145818,-500.0,0.00016712,2]
[330248749,1719208145844,-751.0,0.00016712,2]
[330248750,1719208145872,-500.0,0.00016712,2]
[330248751,1719208145899,-1823.64,0.00016712,2]
[330248752,1719208145924,-500.0,0.00016712,2]
[330248753,1719208145949,-500.0,0.00016712,2]
[330248754,1719208145974,-593.98,0.00016712,2]
[330248755,1719208146004,-500.0,0.00016712,2]
[330248756,1719208146030,-913.23,0.00016712,2]
[330248757,1719208146056,-500.0,0.00016712,2]
[330248758,1719208146082,-1096.69,0.00016712,2]
[330248759,1719208146108,-500.0,0.00016712,2]
[330248760,1719208146132,-739.97,0.00016712,2]
[330248761,1719208146157,-603.31,0.00016712,2]
[330248762,1719208146182,-500.0,0.00016712,2]
[330248763,1719208146208,-500.0,0.00016712,2]
[330248764,1719208146233,-1005.23,0.00016712,2]
[330248765,1719208146262,-3863.02,0.00016712,2]
[330248766,1719208146401,-500.0,0.00016712,2]
[330248767,1719208146426,-500.0,0.00016712,2]
[330248768,1719208146451,-500.0,0.00016712,2]
[330248769,1719208146476,-500.0,0.00016712,2]
[330248770,1719208146503,-500.0,0.00016712,2]
[330248771,1719208146527,-500.0,0.00016712,2]
[330248772,1719208146554,-1648.68,0.00016712,2]
[330248773,1719208146580,-3939.98,0.00016712,2]
[330248774,1719208146605,-620.25,0.00016712,2]
[330248775,1719208146631,-1155.77,0.00016712,2]
[330248776,1719208146655,-500.0,0.00016712,2]
[330248777,1719208146681,-8816.13,0.00016712,2]
[330248778,1719208146705,-2595.35,0.00016712,2]
[330248779,1719208146729,-12985.16,0.00016712,2]
[330248780,1719208146757,-500.0,0.00016712,2]
[330248781,1719208146782,-853.57,0.00016712,2]
[330248782,1719208146807,-500.0,0.00016712,2]
[330248783,1719208146831,-553.58,0.00016712,2]
[330248784,1719208146860,-313.2,0.00016712,2]
[330248785,1719208146886,-2437.46,0.00016712,2]
[330248786,1719208146911,-500.0,0.00016712,2]
[330248787,1719208146936,-500.0,0.00016712,2]
[330248788,1719208146961,-1622.12,0.00016712,2]
[330248789,1719208146985,-500.0,0.00016712,2]
[330248790,1719208147015,-21796.13,0.00016712,2]
[330248791,1719208147040,-500.0,0.00016712,2]
[330248792,1719208147064,-500.0,0.00016712,2]
[330248793,1719208147089,-1789.5,0.00016712,2]
[330248794,1719208147115,-640.75,0.00016712,2]
[330248795,1719208147139,-500.0,0.00016712,2]
[330248796,1719208147164,-4627.44,0.00016712,2]
[330248797,1719208147190,-500.0,0.00016712,2]
[330248798,1719208147214,-1287.43,0.00016712,2]
[330248799,1719208147239,-3352.34,0.00016712,2]
[330248800,1719208147271,-3397.03,0.00016712,2]
[330248801,1719208147297,-500.0,0.00016712,2]
[330248802,1719208147322,-766.53,0.00016712,2]
[330248803,1719208147346,-500.0,0.00016712,2]
[330248804,1719208147371,-500.0,0.00016712,2]
[330248805,1719208147396,-502.01063582,0.00016712,2]
[330248806,1719208147420,-708.47,0.00016712,2]
[330248807,1719208147444,-518.30717639,0.00016712,2]
[330248808,1719208147468,-500.0,0.00016712,2]
[330248809,1719208147493,-4168.63,0.00016712,2]
[330248810,1719208147517,-500.0,0.00016712,2]
[330248811,1719208147541,-2227.09,0.00016712,2]
[330248812,1719208147568,-529.56,0.00016712,2]
[330248813,1719208147593,-880.3,0.00016712,2]
[330248814,1719208147619,-701.48,0.00016712,2]
[330248815,1719208147643,-500.0,0.00016712,2]
[330248816,1719208147667,-500.0,0.00016712,2]
[330248817,1719208147692,-605.96,0.00016712,2]
[330248818,1719208147717,-564.65,0.00016712,2]
[330248819,1719208147741,-567.84,0.00016712,2]
[330248820,1719208147777,-619.61,0.00016712,2]
[330248821,1719208147804,-500.0,0.00016712,2]
[330248822,1719208147828,-766.17,0.00016712,2]
[330248823,1719208147852,-153.0,0.00016752,2]
[330248824,1719208147879,-155.37854107,0.00016799,2]
[330248825,1719208147904,-153.0,0.000168,2]
[330248826,1719208147931,-153.0,0.000168,2]
[330248827,1719208147956,-153.0,0.000168,2]
[330248828,1719208147982,-153.0,0.000168,2]
[330248829,1719208148013,-153.0,0.000168,2]
[330248830,1719208148037,-402.64531294,0.00016899,2]
[330248831,1719208148061,-153.0,0.000169,2]
[330248832,1719208148087,-153.0,0.000169,2]
[330248833,1719208148114,-157.19006853,0.00016932,2]
[330248834,1719208148138,-318.0694556,0.00016948,2]
[330248835,1719208148163,-179.54081427,0.00016948,2]
[330248836,1719208148193,-318.0694556,0.00016948,2]
[330248837,1719208148218,-154.77557542,0.00016948,2]
[330248838,1719208148249,-12815.08,0.00016984,2]
[330248839,1719208148275,-500.0,0.00016984,2]
[330248840,1719208148301,-500.0,0.00016985,2]
[330248841,1719208148327,-602.7,0.00016985,2]
[330248842,1719208148351,-500.0,0.00016985,2]
[330248843,1719208148377,-500.0,0.00016985,2]
[330248844,1719208148402,-524.3,0.00016985,2]
[330248845,1719208148426,-500.0,0.00016985,2]
[330248846,1719208148451,-804.83,0.00016985,2]
[330248847,1719208148475,-500.0,0.00016985,2]
[330248848,1719208148503,-500.0,0.00016985,2]
[330248849,1719208148530,-500.0,0.00016985,2]
[330248850,1719208148556,-500.0,0.00016985,2]
[330248851,1719208148583,-525.09,0.00016985,2]
[330248852,1719208148612,-664.42,0.00016985,2]
[330248853,1719208148640,-648.32,0.00016985,2]
[330248854,1719208148666,-500.0,0.00016985,2]
[330248855,1719208148690,-500.0,0.00016985,2]
[330248856,1719208148716,-500.0,0.00016985,2]
[330248857,1719208148741,-541.45,0.00016985,2]
[330248858,1719208148768,-500.0,0.00016985,2]
[330248859,1719208148793,-500.0,0.00016985,2]
[330248860,1719208148932,-500.0,0.00016985,2]
[330248861,1719208148959,-500.0,0.00016985,2]
[330248862,1719208148984,-500.0,0.00016985,2]
[330248863,1719208149012,-500.0,0.00016985,2]
[330248864,1719208149038,-500.0,0.00016985,2]
[330248865,1719208149064,-500.0,0.00016985,2]
[330248866,1719208149091,-500.0,0.00016985,2]
[330248867,1719208149117,-500.0,0.00016985,2]
[330248868,1719208149143,-804.26,0.00016985,2]
[330248869,1719208149170,-500.0,0.00016985,2]
[330248870,1719208149197,-1042.53,0.00016985,2]
[330248871,1719208149223,-9601.79213166,0.00016985,2]
[330248872,1719208149252,-500.0,0.00016986,2]
[330248873,1719208149277,-500.0,0.00016986,2]
[330248874,1719208149303,-500.0,0.00016986,2]
[330248875,1719208149329,-823.6,0.00016986,2]
[330248876,1719208149353,-500.0,0.00016986,2]
[330248877,1719208149381,-500.057074,0.00016986,2]
[330248878,1719208149406,-500.0,0.00016986,2]
[330248879,1719208149431,-500.0,0.00016986,2]
[330248880,1719208149456,-500.0,0.00016986,2]
[330248881,1719208149483,-500.0,0.00016986,2]
[330248882,1719208149513,-751.0,0.00016986,2]
[330248883,1719208149538,-500.0,0.00016986,2]
[330248884,1719208149567,-1823.64,0.00016986,2]
[330248885,1719208149594,-500.0,0.00016986,2]
[330248886,1719208149619,-500.0,0.00016986,2]
[330248887,1719208149647,-593.98,0.00016986,2]
[330248888,1719208149671,-500.0,0.00016986,2]
[330248889,1719208149696,-913.23,0.00016986,2]
[330248890,1719208149722,-500.0,0.00016986,2]
[330248891,1719208149752,-1096.69,0.00016986,2]
[330248892,1719208149777,-500.0,0.00016986,2]
[330248893,1719208149804,-739.97,0.00016986,2]
[330248894,1719208149830,-603.31,0.00016986,2]
[330248895,1719208149857,-500.0,0.00016986,2]
[330248896,1719208151347,-500.0,0.00016986,2]
[330248897,1719208151377,-1005.23,0.00016986,2]
[330248898,1719208151404,-3863.02,0.00016986,2]
[330248899,1719208151433,-500.0,0.00016986,2]
[330248900,1719208151462,-500.0,0.00016986,2]
[330248901,1719208151490,-500.0,0.00016986,2]
[330248902,1719208151520,-500.0,0.00016986,2]
[330248903,1719208151551,-500.0,0.00016986,2]
[330248904,1719208151577,-500.0,0.00016986,2]
[330248905,1719208151605,-1648.68,0.00016986,2]
[330248906,1719208151634,-3939.98,0.00016986,2]
[330248907,1719208151662,-620.25,0.00016986,2]
[330248908,1719208151688,-500.0,0.00016986,2]
[330248909,1719208151714,-1155.77,0.00016986,2]
[330248910,1719208151751,-8816.13,0.00016986,2]
[330248911,1719208151778,-2595.35,0.00016986,2]
[330248912,1719208151805,-12985.16,0.00016986,2]
[330248913,1719208151832,-500.0,0.00016986,2]
[330248914,1719208151860,-853.57,0.00016986,2]
[330248915,1719208151886,-313.2,0.00016986,2]
[330248916,1719208151913,-500.0,0.00016986,2]
[330248917,1719208151940,-553.58,0.00016986,2]
[330248918,1719208151968,-2437.46,0.00016986,2]
[330248919,1719208151996,-500.0,0.00016986,2]
[330248920,1719208152029,-500.0,0.00016986,2]
[330248921,1719208152059,-1622.12,0.00016986,2]
[330248922,1719208152087,-500.0,0.00016986,2]
[330248923,1719208152118,-21796.13,0.00016986,2]
[330248924,1719208152146,-500.0,0.00016986,2]
[330248925,1719208152173,-500.0,0.00016986,2]
[330248926,1719208152202,-1789.5,0.00016986,2]
[330248927,1719208152230,-640.75,0.00016986,2]
[330248928,1719208152262,-500.0,0.00016986,2]
[330248929,1719208152289,-4627.44,0.00016986,2]
[330248930,1719208152316,-500.0,0.00016986,2]
[330248931,1719208152342,-1287.43,0.00016986,2]
[330248932,1719208152368,-3352.34,0.00016986,2]
[330248933,1719208152395,-3397.03,0.00016986,2]
[330248934,1719208152420,-500.0,0.00016986,2]
[330248935,1719208152446,-766.53,0.00016986,2]
[330248936,1719208152473,-500.0,0.00016986,2]
[330248937,1719208152501,-500.0,0.00016986,2]
[330248938,1719208152528,-708.47,0.00016986,2]
[330248939,1719208152554,-500.0,0.00016986,2]
[330248940,1719208152583,-4168.63,0.00016986,2]
[330248941,1719208152610,-500.0,0.00016986,2]
[330248942,1719208152636,-2227.09,0.00016986,2]
[330248943,1719208152661,-529.56,0.00016986,2]
[330248944,1719208152688,-880.3,0.00016986,2]
[330248945,1719208152714,-701.48,0.00016986,2]
[330248946,1719208152740,-500.0,0.00016986,2]
[330248947,1719208152771,-500.0,0.00016986,2]
[330248948,1719208152798,-605.96,0.00016986,2]
[330248949,1719208152824,-564.65,0.00016986,2]
[330248950,1719208152850,-567.84,0.00016986,2]
[330248951,1719208152877,-619.61,0.00016986,2]
[330248952,1719208152903,-500.0,0.00016986,2]
[330248953,1719208152931,-766.17,0.00016986,2]
[330248954,1719208152957,-299.54502541,0.00016993,2]
[330248955,1719208153119,-6972.7816651,0.00016998,2]
[330248956,1719208153331,1347.37,0.00016712,2]
[330248957,1719208153376,1347.37,0.00016986,2]
[330248958,1719208153579,1535.84342569,0.00016338,2]
[330248959,1719208155189,153.0,0.000167,2]
[330248960,1719208155419,153.0,0.000167,2]
[330248961,1719208155816,1102.94117698,0.00016998,2]
[330248962,1719208156391,157.19006853,0.00016899,2]
[330248963,1719208156821,3380.14,0.00016438,2]
[330248964,1719208157092,3380.14,0.00016712,2]
[330248965,1719208157349,3380.14,0.00016986,2]
[330248966,1719208157694,179.54081427,0.00016932,2]
[330248967,1719208159398,500.0,0.00016438,2]
[330248968,1719208159675,500.0,0.00016712,2]
[330248969,1719208159991,500.0,0.00016986,2]
[330248970,1719208160482,737.76,0.00016438,2]
[330248971,1719208160741,737.76,0.00016712,2]
[330248972,1719208161013,737.76,0.00016986,2]
[330248973,1719208172838,-1442.6,0.00016438,2]
[330248974,1719208172864,-647.48,0.00016438,2]
[330248975,1719208172890,-500.0,0.00016438,2]
[330248976,1719208172915,-1442.6,0.00016712,2]
[330248977,1719208172942,-647.48,0.00016712,2]
[330248978,1719208172968,-500.0,0.00016712,2]
[330248979,1719208172994,-1442.6,0.00016986,2]
[330248980,1719208173025,-647.48,0.00016986,2]
[330248981,1719208173051,-500.0,0.00016986,2]
[330248982,1719208173077,-153.0,0.00017015,2]
[330248983,1719208173104,-202.163109,0.00017072,2]
[330248984,1719208173131,-549.71041124,0.00017082,2]
[330248985,1719208173156,-947.4992689,0.00017082,2]
[330248986,1719208173183,-1487.2316115,0.00017084,2]
[330248987,1719208173207,-153.0,0.000171,2]
[330248988,1719208173232,-565.7746747,0.00017176,2]
[330248989,1719208173258,-57190.97716474,0.000172,2]
[330248990,1719208173285,-153.0,0.000172,2]
[330248991,1719208173309,-153.0,0.000172,2]
[330248992,1719208173336,-12815.08,0.00017258,2]
[330248993,1719208173362,-500.0,0.00017258,2]
[330248994,1719208173393,-292.15072634,0.00017259,2]
[330248995,1719208173419,-602.7,0.00017259,2]
[330248996,1719208173443,-500.0,0.00017259,2]
[330248997,1719208173466,-500.0,0.00017259,2]
[330248998,1719208173490,-524.3,0.00017259,2]
[330248999,1719208173515,-500.0,0.00017259,2]
[330249000,1719208173545,-500.0,0.00017259,2]
[330249001,1719208173574,-500.0,0.00017259,2]
[330249002,1719208173599,-500.0,0.00017259,2]
[330249003,1719208173624,-525.09,0.00017259,2]
[330249004,1719208173649,-664.42,0.00017259,2]
[330249005,1719208173676,-648.32,0.00017259,2]
[330249006,1719208173699,-500.0,0.00017259,2]
[330249007,1719208173724,-500.0,0.00017259,2]
[330249008,1719208173747,-500.0,0.00017259,2]
[330249009,1719208173777,-541.45,0.00017259,2]
[330249010,1719208173802,-500.0,0.00017259,2]
[330249011,1719208173827,-420.85099122,0.00017259,2]
[330249012,1719208173850,-553.21640892,0.00017259,2]
[330249013,1719208173876,-500.0,0.00017259,2]
[330249014,1719208173900,-500.0,0.00017259,2]
[330249015,1719208173925,-491.34716098,0.00017259,2]
[330249016,1719208173950,-500.0,0.00017259,2]
[330249017,1719208173976,-500.0,0.00017259,2]
[330249018,1719208174001,-500.0,0.00017259,2]
[330249019,1719208174030,-500.0,0.00017259,2]
[330249020,1719208174055,-804.26,0.00017259,2]
[330249021,1719208174079,-500.0,0.00017259,2]
[330249022,1719208174105,-1042.53,0.00017259,2]
[330249023,1719208174130,-500.0,0.0001726,2]
[330249024,1719208174155,-500.0,0.0001726,2]
[330249025,1719208174179,-500.0,0.0001726,2]
[330249026,1719208174206,-823.6,0.0001726,2]
[330249027,1719208174230,-500.0,0.0001726,2]
[330249028,1719208174254,-500.0,0.0001726,2]
[330249029,1719208174282,-575.1018965,0.0001726,2]
[330249030,1719208174307,-500.0,0.0001726,2]
[330249031,1719208174331,-500.0,0.0001726,2]
[330249032,1719208174355,-751.0,0.0001726,2]
[330249033,1719208174380,-477.25662626,0.0001726,2]
[330249034,1719208174404,-1823.64,0.0001726,2]
[330249035,1719208174429,-500.0,0.0001726,2]
[330249036,1719208174454,-500.0,0.0001726,2]
[330249037,1719208174478,-593.98,0.0001726,2]
[330249038,1719208174506,-500.0,0.0001726,2]
[330249039,1719208174534,-913.23,0.0001726,2]
[330249040,1719208174562,-500.0,0.0001726,2]
[330249041,1719208174586,-1096.69,0.0001726,2]
[330249042,1719208174612,-500.0,0.0001726,2]
[330249043,1719208174638,-603.31,0.0001726,2]
[330249044,1719208174667,-500.0,0.0001726,2]
[330249045,1719208174693,-1005.23,0.0001726,2]
[330249046,1719208174718,-500.0,0.0001726,2]
[330249047,1719208174743,-500.0,0.0001726,2]
[330249048,1719208174767,-500.0,0.0001726,2]
[330249049,1719208174798,-500.0,0.0001726,2]
[330249050,1719208174822,-3939.98,0.0001726,2]
[330249051,1719208174977,-620.25,0.0001726,2]
[330249052,1719208175003,-1155.77,0.0001726,2]
[330249053,1719208175033,-500.0,0.0001726,2]
[330249054,1719208175060,-8816.13,0.0001726,2]
[330249055,1719208175085,-2595.35,0.0001726,2]
[330249056,1719208175111,-12985.16,0.0001726,2]
[330249057,1719208175135,-500.0,0.0001726,2]
[330249058,1719208175160,-853.57,0.0001726,2]
[330249059,1719208175186,-313.2,0.0001726,2]
[330249060,1719208175212,-500.0,0.0001726,2]
[330249061,1719208175238,-553.58,0.0001726,2]
[330249062,1719208175263,-151.0,0.0001726,2]
[330249063,1719208175293,-2437.46,0.0001726,2]
[330249064,1719208175318,-500.0,0.0001726,2]
[330249065,1719208175344,-500.0,0.0001726,2]
[330249066,1719208175369,-1622.12,0.0001726,2]
[330249067,1719208175396,-500.0,0.0001726,2]
[330249068,1719208175423,-21796.13,0.0001726,2]
[330249069,1719208175448,-500.0,0.0001726,2]
[330249070,1719208175473,-500.0,0.0001726,2]
[330249071,1719208175499,-1789.5,0.0001726,2]
[330249072,1719208175531,-640.75,0.0001726,2]
[330249073,1719208175560,-500.0,0.0001726,2]
[330249074,1719208175592,-4627.44,0.0001726,2]
[330249075,1719208175625,-500.0,0.0001726,2]
[330249076,1719208175655,-1287.43,0.0001726,2]
[330249077,1719208175682,-3352.34,0.0001726,2]
[330249078,1719208175710,-3397.03,0.0001726,2]
[330249079,1719208175736,-500.0,0.0001726,2]
[330249080,1719208175762,-766.53,0.0001726,2]
[330249081,1719208175795,-500.0,0.0001726,2]
[330249082,1719208175821,-500.0,0.0001726,2]
[330249083,1719208175847,-708.47,0.0001726,2]
[330249084,1719208175873,-500.0,0.0001726,2]
[330249085,1719208175901,-4168.63,0.0001726,2]
[330249086,1719208175927,-500.0,0.0001726,2]
[330249087,1719208175953,-529.56,0.0001726,2]
[330249088,1719208175986,-2227.09,0.0001726,2]
[330249089,1719208176014,-880.3,0.0001726,2]
[330249090,1719208176044,-701.48,0.0001726,2]
[330249091,1719208176069,-500.0,0.0001726,2]
[330249092,1719208176100,-500.0,0.0001726,2]
[330249093,1719208176128,-605.96,0.0001726,2]
[330249094,1719208176154,-564.65,0.0001726,2]
[330249095,1719208176179,-567.84,0.0001726,2]
[330249096,1719208176205,-619.61,0.0001726,2]
[330249097,1719208176230,-500.0,0.0001726,2]
[330249098,1719208176255,-766.17,0.0001726,2]
[330249099,1719208176283,-1347.37,0.0001726,2]
[330249100,1719208176310,-3380.14,0.0001726,2]
[330249101,1719208176335,-500.0,0.0001726,2]
[330249102,1719208176360,-737.76,0.0001726,2]
[330249103,1719208176385,-1442.6,0.0001726,2]
[330249104,1719208176412,-647.48,0.0001726,2]
[330249105,1719208176438,-500.0,0.0001726,2]
[330249106,1719208176463,-153.0,0.00017344,2]
[330249107,1719208176489,-153.0,0.00017344,2]
[330249108,1719208176514,-153.0,0.00017344,2]
[330249109,1719208176540,-153.0,0.00017344,2]
[330249110,1719208176569,-153.0,0.00017344,2]
[330249111,1719208176595,-153.0,0.00017344,2]
[330249112,1719208176619,-153.0,0.00017344,2]
[330249113,1719208176644,-153.0,0.00017344,2]
[330249114,1719208176669,-153.0,0.00017344,2]
[330249115,1719208176694,-153.0,0.00017344,2]
[330249116,1719208176718,-153.0,0.00017344,2]
[330249117,1719208176743,-153.0,0.00017344,2]
[330249118,1719208176768,-153.0,0.00017344,2]
[330249119,1719208176798,-153.0,0.00017344,2]
[330249120,1719208176823,-1251.33626623,0.00017396,2]
[330249121,1719208176847,-292.9716414,0.00017397,2]
[330249122,1719208176879,-292.9716414,0.00017397,2]
[330249123,1719208176905,-239.56788705,0.00017398,2]
[330249124,1719208176931,-183.753107,0.00017399,2]
[330249125,1719208176956,-490.28883306,0.00017456,2]
[330249126,1719208176981,-401.65252924,0.00017483,2]
[330249127,1719208177006,-195.47966853,0.00017497,2]
[330249128,1719208177031,-154.77557542,0.00017497,2]
[330249129,1719208177058,-12815.08,0.00017532,2]
[330249130,1719208177084,-500.0,0.00017532,2]
[330249131,1719208177110,-602.7,0.00017533,2]
[330249132,1719208177140,-500.0,0.00017533,2]
[330249133,1719208177168,-647.83389688,0.00017533,2]
[330249134,1719208177194,-524.3,0.00017533,2]
[330249135,1719208177220,-500.0,0.00017533,2]
[330249136,1719208177245,-500.0,0.00017533,2]
[330249137,1719208177271,-500.0,0.00017533,2]
[330249138,1719208177299,-500.0,0.00017533,2]